Workbook

Sheet 第六届互联网+
A1: 附件 创新创业大赛学生获奖奖励和指导教师工作业绩奖励统计表
A2: 二级学院(公章): 制表日期： 年 月 日
A3: 序号 | B3: 获得证书年月 | C3: 竞赛赛项 | D3: 竞赛名称 | E3: 组别 | F3: 奖项 | G3: 级别 | H3: 颁奖单位 | I3: 参赛选手 | J3: 农商银行卡号 | K3: 金额 | L3: 小计 | N3: 工作业绩计分 | O3: 小计 | P3: 获奖奖励分 | Q3: 小计 | R3: 教师总计
A4: 1 | B4: 202011 | C4: 2020第六届中国国际互联网+大学生创新创业大赛 | D4: 琉璃海工坊 | E4: 团体 | F4: 二等奖 | G4: 国家级 | H4: 教育部、中国国际互联网+大学生创新创业大赛组委会 | I4: 王露 | J4: 6214586483000082041 | K4: 4000 | L4: ￥20,000 | M4: 冯苒苒 | P4: 36000 | Q4: ￥50,000.00 | R4: =SUM(N4,P4) -> 36000
I5: 邝嘉雨 | J5: 6214586483000087214 | K5: 4000 | M5: 马红 | P5: 10000 | R5: 10000
I6: 方亚平 | J6: 6214586482900051932 | K6: 4000 | M6: 郭柏成 | P6: 2000 | R6: 2000
I7: 庞金焕 | J7: 6214586483000019084 | K7: 4000 | M7: 李转风 | P7: 2000 | R7: 2000
I8: 严光攀 | J8: 6214586482600238300 | K8: 4000 | R8: =SUM(P26400N8,P8) -> 
A9: 2 | B9: 202012 | C9: 第六届“互联网+”大学生创新创业大赛海南省赛 | D9: YK （椰壳）文创设计室 | E9: 团队 | F9: 一等奖 | G9: 省级A类 | H9: 海南省教育厅 | I9: 龙月乾 | J9: 6214586483000084963 | K9: 2100 | L9: ￥4,000 | M9: 许劭艺 | P9: 4500 | Q9: ￥10,000 | R9: 4500
I10: 张建忠 | J10: 6214586483000176595 | K10: 1100 | M10: 李红 | P10: 2000 | R10: 2000
I11: 黄子涵 | J11: 6214586482600225422 | K11: 300 | M11: 李婉 | P11: 1250 | R11: 1250
I12: 杨泽 | J12: 6214586483000162892 | K12: 500 | M12: 李转风 | P12: 1250 | R12: 1250
M13: 李丹 | P13: 1000 | R13: 1000
A14: 3 | B14: 2020-10-01 | C14: 2020年第六届中国国际“互联网+”大学生创新创业竞赛海南赛区竞赛 | D14: 一堂实验课 | E14: 团体 | F14: 一等奖 | G14: 省级 | H14: 海南省教育厅 | I14: 李云飞 | J14: 6214586483000017807 | K14: 1400 | L14: 4000 | M14: 梁其钰 | P14: 7000 | Q14: 10000 | R14: =SUM(N14,P14) -> 7000
I15: 程瑞 | J15: 6214586483000148479 | K15: 1400 | M15: 李转风 | P15: 1500 | R15: =SUM(N15,P15) -> 1500
I16: 宋祥琦 | J16: 6214586482600255122 | K16: 600 | M16: 潘敏 | P16: 1500 | R16: =SUM(N16,P16) -> 1500
I17: 李昊 | J17: 6214586483000086117 | K17: 600
A18: 4 | B18: 202007 | C18: 第六届“互联网+”大学生创新创业大赛海南省赛 | D18: 体态管家——和不良坐姿说再见 | E18: 团体 | F18: 二等奖 | G18: 省级 A级 | H18: 海南省教育厅 | I18: 胡茂胜 | J18: 6214586482600236353 | K18: 500 | L18: ￥2,500 | M18: 刘麦 | P18: 7000 | Q18: ￥8,000 | R18: =SUM(N18,P18) -> 7000
I19: 黄前坤 | J19: 6214586483000084534 | K19: 500 | M19: 马艳花 | P19: 1000 | R19: 1000
I20: 陈庆福 | J20: 6214586482600222031 | K20: 500 | R20: 0
I21: 符永杰 | J21: 6214586483000169814 | K21: 500 | R21: 0
I22: 王高航 | J22: 6214586483000157876 | K22: 500 | R22: 0
A23: 5 | B23: 202010 | C23: 2020第六届中国国际“互联网+”大学生创新创业竞赛海南赛区职教赛道 | D23: 昆顺智慧物流信息平台 | E23: 团体 | F23: 二等奖 | G23: 省级A级 | H23: 海南省教育厅 | I23: 文涵 | J23: 6214586483000179805 | K23: 2350 | L23: ￥2,500 | M23: 陈青云 | P23: 2750 | Q23: ￥8,000 | R23: 2750
I24: 洪德丰 | J24: 6214586483000177163 | K24: 150 | M24: 潘珠 | P24: 2500 | R24: 2500
M25: 惠青 | P25: 2750 | R25: 2750
A26: 6 | B26: 202010 | C26: 2020第六届中国国际互联网+大学生创新创业大赛 海南赛区 | D26: 一站式人力资源服务平台 | E26: 团体 | F26: 二等奖 | G26: 省级 | H26: 海南省教育厅 | I26: 黄鸿飞 | J26: 6214586480904823488 | K26: 2000 | L26: ￥2,500 | M26: 李转风 | P26: 4000 | Q26: ￥8,000 | R26: 4000
I27: 张超 | J27: 6214586483000084336 | K27: 200 | M27: 潘敏 | P27: 3000 | R27: 3000
I28: 文涵 | J28: 6214586483000179805 | K28: 300 | M28: 陈青云 | P28: 1000 | R28: 1000
A29: 7 | B29: 202007 | C29: 第六届“互联网+”大学生创新创业大赛海南省赛 | D29: 基于EasyDL的小孩攀爬 行为图像识别与报警装置 | E29: 团体 | F29: 三等奖 | G29: 省级 A级 | H29: 海南省教育厅 | I29: 吴敏敏 | J29: 6214586483000153578 | K29: 300 | L29: ￥1,500 | M29: 马艳花 | P29: 4000 | Q29: ￥5,000 | R29: 4000
I30: 袁明杰 | J30: 6214586482600232915 | K30: 300 | M30: 刘麦 | P30: 1000 | R30: 1000
I31: 曹海锋 | J31: 6214586482600227055 | K31: 300 | M31: 李转风 | R31: 0
I32: 王诗殿 | J32: 6214586482600232923 | K32: 300 | R32: 0
I33: 符祥利 | J33: 6214586482600232964 | K33: 300 | R33: 0
A34: 8 | B34: 202010 | C34: 2020第六届中国国际互联网+大学生创新创业大赛 海南赛区 | D34: 颖想力H5工作室 | E34: 团体 | F34: 三等奖 | G34: 省级A级 | H34: 海南省教育厅 | I34: 庞金焕 | J34: 6214586483000019084 | K34: 500 | L34: ￥1,500 | M34: 冯苒苒 | P34: 4000 | Q34: ￥5,000 | R34: 4000
I35: 方亚平 | J35: 6214586482900051932 | K35: 500 | M35: 马红 | P35: 1000 | R35: 1000
I36: 王露 | J36: 6214586483000082041 | K36: 500 | M36: 徐超 | R36: 0
A37: 9 | B37: 2020 | C37: 2020年第六届中国国际“互联网”大学生创新创业竞赛海南赛区 | D37: Y0Y0儿童体适能 | E37: 团队 | F37: 三等奖 | G37: 省级A级 | H37: 海南省教育厅 | I37: 赵罗茜 | J37: 6214586482600254299 | K37: 300 | L37: ￥1,500 | M37: 陈秋菊 | P37: 2000 | Q37: ￥5,000 | R37: 2000
I38: 张燕敏 | J38: 6214586483000176892 | K38: 300 | R38: 0
I39: 林照亮 | J39: 6215366455019155797 | K39: 300 | M39: 李婉 | P39: 1500 | R39: 1500
I40: 师谨 | J40: 6214586483000136094 | K40: 300 | R40: 0
I41: 李季玮 | J41: 6214586483000081571 | K41: 300 | M41: 王丽娟 | P41: 1500 | R41: 1500
A42: 10 | B42: 2020 | C42: 第六届“互联网+”大学生创新创业大赛海南省赛 | D42: 乐创设计 | E42: 团体 | F42: 三等奖 | G42: 省级 A级 | H42: 海南省教育厅 | I42: 陈明潭 | J42: 6212262201027903113 | K42: 900 | L42: ￥1,500 | M42: 黄守官 | P42: 2500 | Q42: ￥5,000 | R42: 2500
I43: 刘俊丰 | J43: 6214586483000064536 | K43: 300 | M43: 李转风 | P43: 2500 | R43: =SUM(#REF!,P43) -> 
I44: 包广兵 | J44: 6214586483000064668 | K44: 300 | R44: =SUM(#REF!,P44) -> 
A45: 11 | B45: 2020-10-01 | C45: 2020年第六届中国国际“互联网+”大学生创新创业竞赛海南赛区竞赛 | D45: MIX摄影大师 | E45: 团体 | F45: 三等奖 | G45: 省级 | H45: 海南省教育厅 | I45: 刘婷 | J45: 6214586483000058702 | K45: 600 | L45: ￥1,500 | M45: 单继周 | P45: 2000 | Q45: 5000 | R45: =SUM(N45,P45) -> 2000
I46: 邱贤隆 | J46: 6214586483000095134 | K46: 500 | M46: 梁其钰 | P46: 2000 | R46: =SUM(N46,P46) -> 2000
I47: 罗盼 | J47: 6214586483000176686 | K47: 400 | M47: 陈亚芳 | P47: 1000 | R47: =SUM(N47,P47) -> 1000
I48: 学生合计 | L48: =SUM(L4:L47) -> 43000 | M48: 教师合计 | R48: =SUM(Q4:Q13,O4) -> 60000
A49: 总计 | E49: =SUM(L48,R48) -> 103000

Sheet 第七届互联网+
A1: 创新创业大赛学生获奖奖励和指导教师工作业绩奖励统计表
A2: 二级学院(公章): 制表日期： 年 月 日
A3: 序号 | B3: 获得证书年月 | C3: 竞赛赛项 | D3: 竞赛名称 | E3: 组别 | F3: 奖项 | G3: 级别 | H3: 颁奖单位 | I3: 参赛选手 | J3: 农商银行卡号 | K3: 金额 | L3: 小计 | M3: 指导教师 | N3: 工作业绩计分 | O3: 小计 | P3: 获奖奖励分 | Q3: 小计 | R3: 教师总计
A4: 1 | B4: 202107 | C4: 炳琅文创 | D4: 第七届“互联网+”大学生创新创业大赛 | E4: 团队 | F4: 一等奖 | G4: 省级A类 | H4: 海南省教育厅 | I4: 商昊天 | J4: 6214586482600255429 | K4: 1200 | L4: ￥4,000 | M4: 李红 | P4: 7000 | Q4: ￥10,000 | R4: =SUM(N4,P4) -> 7000
I5: 和彦琦 | J5: 6214586483000263351 | K5: 300 | M5: 陈侦侦 | P5: 500 | R5: =SUM(N5,P5) -> 500
I6: 高灵欣 | J6: 6214586483000242009 | K6: 300 | M6: 李转风 | P6: 1000 | R6: 1000
I7: 陈志连 | J7: 6214586483000274119 | K7: 300 | M7: 李婉 | P7: 1000 | R7: 1000
I8: 翟小乐 | J8: 6214586483000261389 | K8: 500 | M8: 毛一晶 | P8: 500 | R8: 500
I9: 张镇 | J9: 6214586483000095670 | K9: 800
I10: 王溢杰 | J10: 6214586483000238346 | K10: 600
A11: 2 | B11: 202106 | C11: 融媒课工坊 | D11: 2021第七届中国国际互联网+大学生创新创业大赛 海南赛区 | E11: 团队 | F11: 一等奖 | G11: 省级 A级 | H11: 海南省教育厅 | I11: 杨泽 | J11: 6214586482600255460 | K11: 800 | L11: ￥4,000 | M11: 冯苒苒 | P11: 7000 | Q11: ￥10,000 | R11: 7000
I12: 刘静 | J12: 6214586482600255460 | K12: 800 | M12: 马红 | P12: 3000 | R12: 3000
I13: 林雨婷 | J13: 6214586482600259223 | K13: 800
I14: 黄政仕 | J14: 6214586482600223377 | K14: 800
I15: 吴廷松 | J15: 6214586483000165085 | K15: 800
A16: 3 | B16: 2021 | C16: 南溟乡村设计服务 | D16: 第七届“互联网+”大学生创新创业大赛 | E16: 团体 | F16: 二等奖 | G16: 省级 A级 | H16: 海南省教育厅 | I16: 姜宁 | J16: 6214586482600248861 | K16: 1200 | L16: ￥2,500 | M16: 齐天俏 | P16: 4000 | Q16: ￥8,000 | R16: 4000
I17: 王世程 | J17: 6214586483000162686 | K17: 500 | M17: 陈圣 | P17: 2000 | R17: 2000
I18: 许儒敬 | J18: 6214586483000159245 | K18: 500 | M18: 张青松 | P18: 1200 | R18: 1200
I19: 夏石钢 | J19: 6214586483000260852 | K19: 300 | M19: 徐超 | P19: 800 | R19: 800
A20: 4 | B20: 202106 | C20: 柜在生活 | D20: 第七届“互联网+”大学生创新创业大赛 | E20: 团队 | F20: 二等奖 | G20: 省级 A级 | H20: 海南省教育厅 | I20: 陈奕霖 | J20: 6214586483000283482 | K20: 1300 | L20: ￥2,500 | M20: 李转风 | P20: 2200 | Q20: ￥8,000 | R20: 2200
I21: 林尤朋 | J21: 6214586483000164922 | K21: 500 | M21: 崔昌华 | P21: 2200 | R21: 2200
I22: 李叶云 | J22: 6214586483000157330 | K22: 300 | M22: 张辰 | P22: 1200 | R22: 1200
I23: 吴少娃 | J23: 6214586483000246190 | K23: 200 | M23: 丁菁华 | P23: 800 | R23: 800
I24: 段猛凯 | J24: 6214586482600227584 | K24: 100 | M24: 梁其钰 | P24: 800 | R24: 800
I25: 黄煜程 | J25: 6214586482600257664 | K25: 100 | M25: 李琰 | P25: 800 | R25: 800
A26: 5 | B26: 202106 | C26: 乡村振兴圈 | D26: 第七届“互联网+”大学生创新创业大赛 | E26: 团队 | F26: 三等奖 | G26: 省级 A级 | H26: 海南省教育厅 | I26: 陈奕霖 | J26: 6214586483000283482 | K26: 150 | L26: ￥1,500 | M26: 崔昌华 | P26: 3000 | Q26: ￥5,000 | R26: 3000
I27: 段猛凯 | J27: 6214586482600227584 | K27: 150 | M27: 李转风 | P27: 1000 | R27: 1000
I28: 黄煜程 | J28: 6214586482600257664 | K28: 150 | M28: 李琰 | P28: 1000 | R28: 1000
I29: 李国华 | J29: 6214586483000253444 | K29: 150
I30: 罗翠萍 | J30: 6214586483000245226 | K30: 150
I31: 赵鉴鹏 | J31: 6214586482600259181 | K31: 150
I32: 陈伟洪 | J32: 6214586483000095308 | K32: 150
I33: 唐慧 | J33: 6214586483000260811 | K33: 150
I34: 萧淇元 | J34: 6214586483000239245 | K34: 150
I35: 王蕊 | J35: 6214586482600258886 | K35: 150
A36: 6 | B36: 202106 | C36: 体态智能监测装置 | D36: 第七届中国国际“互联网+”大学生创新创业大赛 | E36: 团体 | F36: 三等奖 | G36: 省级 A级 | H36: 海南省教育厅 | I36: 王高航 | J36: 6214586483000157876 | K36: 400 | L36: ￥1,500 | M36: 刘麦 | P36: 4500 | Q36: ￥5,000 | R36: 4500
I37: 胡茂胜 | J37: 6214586482600236353 | K37: 100 | M37: 马艳花 | P37: 500 | R37: 500
I38: 王驿帆 | J38: 6214586483000180217 | K38: 300
I39: 秦鹏 | J39: 6214586483000261843 | K39: 300
I40: 张家豪 | J40: 6214586483000242264 | K40: 200
I41: 王昊 | J41: 6214586483000242827 | K41: 100
I42: 麦常浴 | J42: 621458 6483000239153 | K42: 100
A43: 7 | B43: 2021 | C43: 数智驱动晶体膜 | D43: 第七届“互联网+”大学生创新创业大赛 | E43: 团体 | F43: 三等奖 | G43: 省级 A级 | H43: 海南省教育厅 | I43: 尉海霞 | J43: 6214586483000263435 | K43: 300 | L43: ￥1,500 | M43: 李芳 | P43: 1000 | Q43: ￥5,000 | R43: =SUM(N43,P43) -> 1000
I44: 王婷媛 | J44: 6214586483000263575 | K44: 300 | M44: 吉家文 | P44: 1000 | R44: 1000
I45: 朱泽珂 | J45: 6214586483000260928 | K45: 300 | M45: 杨玖林 | P45: 1000 | R45: 1000
I46: 廖娱 | J46: 6214586483000259953 | K46: 300 | M46: 李转风 | P46: 1000 | R46: 1000
I47: 李天智 | J47: 6214586483000248022 | K47: 300 | M47: 赵兴珍 | P47: 1000 | R47: 1000
A48: 8 | B48: 202106 | C48: 南海易村 | D48: 第七届“互联网+”大学生创新创业大赛 | E48: 团体 | F48: 三等奖 | G48: 省级 A级 | H48: 海南省教育厅 | I48: 毛奕菲 | J48: 6214586483000249566 | K48: 300 | L48: ￥1,500 | M48: 陈君涛 | P48: 2500 | Q48: ￥5,000 | R48: 2500
I49: 罗明英 | J49: 6214586483000261074 | K49: 300 | M49: 郭芳 | P49: 2500 | R49: 2500
I50: 高振龙 | J50: 6214586483000080151 | K50: 300
I51: 吉欣婷 | J51: 6214586483000080680 | K51: 300
I52: 刘石龙 | J52: 6214586483000261322 | K52: 300
A53: 9 | B53: 202106 | C53: 智慧农业一体化解决方案 | D53: 第七届“互联网+”大学生创新创业大赛 | E53: 团体 | F53: 三等奖 | G53: 省级 A级 | H53: 海南省教育厅 | I53: 杨用祺 | J53: 6214586483000251091 | K53: 250 | L53: ￥1,500 | M53: 梁其钰 | P53: 2750 | Q53: ￥5,000 | R53: =SUM(N53,P53) -> 2750
I54: 何佳珏 | J54: 6214586483000252800 | K54: 250 | M54: 代晓明 | P54: 1500 | R54: =SUM(N54,P54) -> 1500
I55: 王艺润 | J55: 6214586483000267683 | K55: 250 | M55: 龙腾 | P55: 750 | R55: =SUM(N55,P55) -> 750
I56: 符广磊 | J56: 6214586483000259524 | K56: 250
I57: 王闻薪 | J57: 6214586483000253170 | K57: 250
I58: 谢宗晔 | J58: 6214586483000258377 | K58: 250
A59: 10 | B59: 2021 | C59: 创新创业 | D59: 第七届中国互联网+创新创业大赛 | E59: 高职组 | F59: 三等奖 | G59: 省赛 | H59: 海南省教育厅 | I59: 段猛凯 | J59: 6214586482600227584 | K59: 3000 | L59: ￥4,000 | M59: 陈君涛 | P59: 2000 | Q59: ￥5,000 | R59: =SUM(N59,P59) -> 2000
M60: 陈焕镜 | P60: 1000 | R60: =SUM(N60,P60) -> 1000
I61: 田泽裕 | J61: 6214586483000012121 | K61: 1000 | M61: 王小梅 | P61: 1000 | R61: =SUM(N61,P61) -> 1000
M62: 李琰 | P62: 1000 | R62: =SUM(N62,P62) -> 1000
A63: 11 | B63: 2021 | C63: 创新创业 | D63: 第七届中国互联网+创新创业大赛 | E63: 高职组 | F63: 一等奖 | G63: 校赛 | H63: 海南经贸职业技术学院 | I63: 毛奕菲 | J63: 6214586483000249566 | K63: 100 | L63: ￥500 | M63: 陈君涛 | P63: 250 | Q63: ￥500 | R63: =SUM(N63,P63) -> 250
I64: 罗明英 | J64: 6214586483000261074 | K64: 100 | M64: 郭芳 | P64: 250 | R64: 250
I65: 吉欣婷 | J65: 6214586483000080680 | K65: 100
I66: 高振龙 | J66: 6214586483000080151 | K66: 100
I67: 刘石龙 | J67: 6214586483000261322 | K67: 100
A68: 12 | B68: 2021 | C68: 创新创业 | D68: 第七届中国互联网+创新创业大赛 | E68: 高职组 | F68: 一等奖 | G68: 校赛 | H68: 海南经贸职业技术学院 | I68: 段猛凯 | J68: 6214586482600227584 | K68: 250 | L68: ￥500 | M68: 陈君涛 | P68: 250 | Q68: ￥500 | R68: 250
I69: 田泽裕 | J69: 6214586483000012121 | K69: 250 | M69: 陈焕镜 | P69: 250 | R69: 250
A70: 13 | B70: 2021年 | C70: 五指山雨林 | D70: 2021年第七届中国“互联网+”大学生创新创业大赛校赛 | E70: 团队 | F70: 二等奖 | G70: 校级 | H70: 海南经贸职业技术学院 | I70: 李远洋 | J70: 621458648300093261 | K70: 300 | L70: ￥300 | M70: 张辰 | P70: 300 | Q70: ￥300 | R70: =SUM(O70,Q70) -> 300
I71: 陈俞璟
I72: 刘杰
I73: 黄国咏
I74: 刘景
I75: 陈奕霖
I76: 陈文霖
A77: 14 | B77: 2021年 | C77: MENG香薰 | D77: 互联网+大学生创新创业大赛 | E77: 团队 | F77: 二等奖 | G77: 校赛 | H77: 海南经贸职业技术学院 | I77: 魏跃娇 | J77: 6214586483000262213 | K77: 100 | L77: ￥300 | M77: 黄银亮 | P77: 100 | Q77: ￥300 | R77: =SUM(N77,P77) -> 100
I78: 杨娟娟 | J78: 6214586483000244344 | K78: 100 | M78: 郑艳 | P78: 100 | R78: 100
I79: 庞龙芳 | J79: 6214586483000276569 | K79: 100 | M79: 韩笑 | P79: 100 | R79: 100
A80: 15 | B80: 2021年 | C80: 衣成创意工作室 | D80: 海经贸互联网+校赛 | E80: 团队 | F80: 二等奖 | G80: 校级 | H80: 海南经贸职业技术学院 | I80: 王伟 | J80: 6214586482600254521 | K80: 165 | L80: ￥300 | M80: 陈圣 | P80: 165 | Q80: ￥300 | R80: 165
I81: 夏石钢 | J81: 6214586483000260852 | K81: 90 | M81: 田小林 | P81: 90 | R81: 90
I82: 姜宁 | J82: 6214586482600248861 | K82: 45 | M82: 李婉 | P82: 45 | R82: 45
A83: 16 | B83: 2021年 | C83: 果农帮 | D83: 第七届中国国际“互联网+”大学生创新创业大赛校赛 | E83: 团队 | F83: 二等奖 | G83: 校级 | H83: 海南经贸职业技术学院 | I83: 黄文宇 | J83: 6214586483000239468 | K83: 60 | L83: ￥300 | M83: 潘敏 | P83: 165 | Q83: ￥300 | R83: 165
I84: 郭慧嫔 | J84: 6214586483000239575 | K84: 60 | M84: 陈霞 | P84: 90 | R84: 90
I85: 陈盛煌 | J85: 6214586483000257866 | K85: 60 | M85: 李转风 | P85: 45 | R85: 45
I86: 陈丽桦 | J86: 6214586483000270299 | K86: 60
I87: 赵鉴鹏 | J87: 6214586482600259181 | K87: 60
A88: 17 | B88: 2021年 | C88: 创新创业大赛 | D88: 第七届“互联网+”大学生创新创业大赛校赛 | E88: 团队 | F88: 二等奖 | G88: 校级 | H88: 海南经贸职业技术学院 | I88: 陈丽桦 | J88: 6214586483000270299 | K88: 33 | L88: ￥300 | M88: 陈霞 | P88: 195 | Q88: ￥300 | R88: =SUM(N88,P88) -> 195
I89: 赵源雅 | J89: 6214586483000270505 | K89: 33 | M89: 李转风 | P89: 105 | R89: 105
I90: 王琼艳 | J90: 6214586483000246521 | K90: 33
I91: 许琪琨 | J91: 6214586482600258043 | K91: 33
I92: 周卓玲 | J92: 6214586483000269473 | K92: 33
I93: 黄文宇 | J93: 6214586483000239468 | K93: 33
I94: 吴晓莉 | J94: 6214586483000265869 | K94: 33
I95: 唐晓若 | J95: 6214586483000267782 | K95: 33
I96: 陈冠辰 | J96: 6214586483000242173 | K96: 33
A97: 18 | B97: 2021年 | D97: 2021年第七届中国“互联网+”大学生创新创业大赛校赛 | E97: 团队 | F97: 二等奖 | G97: 校级A类 | H97: 海南经贸职业技术学院 | I97: 赵鉴鹏 | J97: 6214586482600259181 | K97: 100 | L97: ￥300 | M97: 吉家文 | P97: 300 | Q97: ￥300 | R97: 300
I98: 魏荣江 | J98: 6214586483000242744 | K98: 100 | M98: 李丛伟 | P98: 0 | R98: 0
I99: 张冲 | J99: 6214586482600255130 | K99: 100
A100: 19 | B100: 2021 | C100: 创新创业 | D100: 第七届中国互联网+创新创业大赛 | E100: 高职组 | F100: 二等奖 | G100: 校赛 | H100: 海南经贸职业技术学院 | I100: 王斯玉 | J100: 6214586483000238007 | K100: 60 | L100: ￥300 | M100: 郭芳 | P100: 150 | Q100: ￥300 | R100: =SUM(N100,P100) -> 150
I101: 吉欣婷 | J101: 6214586483000080680 | K101: 60 | M101: 陈君涛 | P101: 150 | R101: =SUM(N101,P101) -> 150
I102: 简开蕾 | J102: 6214586483000140617 | K102: 60
I103: 胡丹丹 | J103: 6214586482600247391 | K103: 60
I104: 郑翔月 | J104: 6214586483000272907 | K104: 60
A105: 20 | B105: 202106 | C105: “海”好有噜 | D105: 第七届中国互联网+创新创业大赛 | E105: 创意组 | F105: 二等奖 | G105: 院级 | H105: 海南经贸职业技术学院 | I105: 陈风调 | J105: 6214586483000150665 | K105: 300 | L105: ￥300 | M105: 姜可营 | P105: 200 | Q105: ￥300 | R105: 300
M106: 许劭艺 | P106: 100
I107: 学生合计 | L107: =SUM(L4:L106) -> ￥27,900.00 | M107: 教师合计 | R107: =SUM(O4:O106,Q4:Q106) -> 69400
A108: 总计 | E108: =SUM(L107,R107) -> 97300

Sheet 2020-2021中美创客
A1: 各类学生竞赛获奖奖励和指导教师工作业绩奖励统计表
A2: 二级学院(公章): 制表日期： 年 月 日
A3: 序号 | B3: 获得证书年月 | C3: 项目名称 | D3: 竞赛名称 | E3: 组别 | F3: 奖项 | G3: 级别 | H3: 颁奖单位 | I3: 参赛选手 | J3: 农商银行卡号 | K3: 金额 | L3: 小计 | M3: 指导教师 | N3: 工作业绩计分 | O3: 小计 | P3: 获奖奖励分 | Q3: 小计 | R3: 教师总计
A4: 1 | B4: 2020年 | C4: 琉璃海手工坊 | D4: 2020年中美青年创客大赛海口赛区竞赛 | E4: 团队 | F4: 一等奖 | G4: 省级 | H4: 海南省教育厅 | I4: 王露 | J4: 6214586483000082041 | K4: 1000 | L4: ￥4,000.00 | M4: 冯苒苒 | P4: 8000 | Q4: ￥10,000 | R4: =SUM(N4,P4) -> 8000
I5: 庞金焕 | J5: 6214586483000019084 | K5: 1000
I6: 邝嘉雨 | J6: 6214586483000087214 | K6: 1000 | M6: 马红 | P6: 2000 | R6: =SUM(N6,P6) -> 2000
I7: 严光攀 | J7: 6214586482600238300 | K7: 1000
A8: 2 | B8: 2020年 | C8: 一站式人力资源服务平台 | D8: 2020年中美青年创客大赛海口赛区竞赛 | E8: 团队 | F8: 一等奖 | G8: 省级 | H8: 海南省教育厅 | I8: 黄鸿飞 | J8: 6214586480904823488 | K8: 2000 | L8: ￥4,000.00 | M8: 李转风 | P8: 10000 | Q8: ￥10,000 | R8: =SUM(N8,P8) -> 10000
I9: 张超 | J9: 6214586483000084336 | K9: 200
I10: 文涵 | J10: 6214586483000170000 | K10: 300
A11: 3 | B11: 2020年 | C11: 学途 | D11: 2020年中美青年创客大赛海口赛区竞赛 | E11: 团队 | F11: 三等奖 | G11: 省级 | H11: 海南省教育厅 | I11: 李昭达 | J11: 6214586483000079229 | K11: 300 | L11: ￥1,500.00 | M11: 张辰 | P11: 5000 | Q11: ￥5,000 | R11: =SUM(N11,P11) -> 5000
I12: 陈明 | J12: 6214586483000079088 | K12: 300
I13: 陈积通 | J13: 6214586480854198865 | K13: 300
I14: 郑婷婷 | J14: 6214586483000080144 | K14: 300
I15: 郑金玉 | J15: 6214586483000079724 | K15: 300
A16: 4 | B16: 2021 | C16: 基于EasyDL的智能看护助手 | D16: 2021年中美青年创客大赛 | E16: 团体 | F16: 一等奖 | G16: 省级 A级 | H16: 海南省教育厅 | I16: 秦鹏 | J16: 6214586483000261843 | K16: 2000 | L16: ￥4,000.00 | M16: 刘麦 | P16: 9500 | Q16: ￥10,000 | R16: =SUM(N16,P16) -> 9500
I17: 吴荣瑾 | J17: 6214586483000238031 | K17: 2000 | M17: 李转风 | P17: 500 | R17: =SUM(N17,P17) -> 500
A18: 5 | B18: 2021 | C18: KTZ | D18: 2021年中美青年创客大赛 | E18: 团体 | F18: 三等奖 | G18: 省级 A级 | H18: 海南省教育厅 | I18: 李可有 | J18: 6214586483000259052 | K18: 750 | L18: ￥1,500.00 | M18: 刘麦 | P18: 4500 | Q18: ￥5,000 | R18: 4500
I19: 李忠桦 | J19: 6214586483000251703 | K19: 750 | M19: 马艳花 | P19: 500 | R19: 500
A20: 6 | B20: 2021年 | C20: 融媒课工坊 | D20: 2021年中美青年创客大赛海口赛区竞赛 | E20: 团队 | F20: 三等奖 | G20: 省级 | H20: 海南省教育厅 | I20: 杨泽 | J20: 6214586483000140823 | K20: 300 | L20: ￥1,500.00 | M20: 冯苒苒 | P20: 4000 | Q20: ￥5,000 | R20: 4000
I21: 吴延松 | J21: 6214586483000165085 | K21: 300
I22: 黄政仕 | J22: 6214586482600223377 | K22: 300 | M22: 马红 | P22: 1000 | R22: 1000
I23: 龚美伊 | J23: 6214586483000160771 | K23: 300
I24: 刘静 | J24: 6214586482600255460 | K24: 300
A25: 7 | B25: 2021年 | C25: 蒂雅传媒 | D25: 2021年中美青年创客大赛海口赛区竞赛 | E25: 团队 | F25: 三等奖 | G25: 省级 | H25: 海南省教育厅 | I25: 潘仁涛 | J25: 6214586483000178625 | K25: 300 | L25: ￥1,500.00 | M25: 李转风 | P25: 2000 | Q25: ￥5,000 | R25: =SUM(N25,P25) -> 2000
I26: 侯兆泉 | J26: 6214586483000262874 | K26: 300 | M26: 崔昌华 | P26: 2000 | R26: =SUM(N26,P26) -> 2000
I27: 吴洁丽 | J27: 6214586482600250000 | K27: 300 | M27: 黄守官 | P27: 1000 | R27: =SUM(N27,P27) -> 1000
I28: 张派生 | J28: 6214586483000239799 | K28: 300
I29: 王伟宇 | J29: 62145864830000200000 | K29: 300
A30: 8 | B30: 2021年 | C30: 炳琅文化创意工作室 | D30: 2021年中美青年创客大赛海口赛区竞赛 | E30: 团队 | F30: 三等奖 | G30: 省级 | H30: 海南省教育厅 | I30: 商昊天 | J30: 6214586482600255429 | K30: 300 | L30: ￥1,500.00 | M30: 李红 | P30: 3000 | Q30: ￥5,000 | R30: =SUM(N30,P30) -> 3000
I31: 张镇 | J31: 6214586483000095670 | K31: 300 | M31: 陈侦侦 | P31: 200 | R31: =SUM(N31,P31) -> 200
I32: 翟小乐 | J32: 6214586483000261389 | K32: 300 | M32: 李婉 | P32: 800 | R32: =SUM(N32,P32) -> 800
I33: 王溢杰 | J33: 6214586483000238346 | K33: 300 | M33: 李转风 | P33: 800 | R33: =SUM(N33,P33) -> 800
I34: 许琪琨 | J34: 6214586482600258043 | K34: 300 | M34: 毛一晶 | P34: 200 | R34: =SUM(N34,P34) -> 200
I35: 学生合计 | L35: =SUM(L4:L34) -> ￥19,500.00 | M35: 教师合计 | R35: =SUM(R4:R34) -> 55000
A36: 总计 | E36: =SUM(L35,R35) -> ￥74,500.00

Sheet 移动互联
A1: 各类学生竞赛获奖奖励和指导教师工作业绩奖励统计表
A2: 二级学院(公章): 制表日期： 年 月 日
A3: 序号 | B3: 获得证书年月 | C3: 竞赛赛项 | D3: 竞赛名称 | E3: 组别 | F3: 奖项 | G3: 级别 | H3: 颁奖单位 | I3: 参赛选手 | J3: 农商银行卡号 | K3: 金额 | L3: 小计 | M3: 指导教师 | N3: 工作业绩计分 | O3: 小计 | P3: 获奖奖励分 | Q3: 小计 | R3: 教师总计
A4: 1 | B4: 202012 | C4: 琉璃海工坊 | D4: 2020（第六届）移动互联创新创业大赛总决赛高校组 | E4: 团队 | F4: 三等奖 | G4: 国家级 | H4: 中国通信学会 | I4: 王露 | J4: 6214586483000082041 | K4: 5000 | L4: ￥10,000.00 | M4: 冯苒苒 | P4: 22000 | Q4: ￥30,000 | R4: =SUM(N4,P4) -> 22000
I5: 邝嘉雨 | J5: 6214586483000087214 | K5: 5000 | M5: 马红 | P5: 8000 | R5: =SUM(N5,P5) -> 8000
A6: 2 | B6: 202007 | C6: 体态管家——和不良坐姿说再见 | D6: 2020全国移动互联创新大赛（华南赛区） | E6: 团体 | F6: 二等奖 | G6: 省级 A级 | H6: 全国移动互联创新大赛组委会 | I6: 胡茂胜 | J6: 6214586482600236353 | K6: 500 | L6: ￥2,500.00 | M6: 刘麦 | P6: 7000 | Q6: ￥8,000 | R6: =SUM(P6) -> 7000
I7: 黄前坤 | J7: 6214586483000084534 | K7: 500 | M7: 马艳花 | P7: 1000 | R7: =SUM(P7) -> 1000
I8: 陈庆福 | J8: 6214586482600222031 | K8: 500
I9: 符永杰 | J9: 6214586483000169814 | K9: 500
I10: 王高航 | J10: 6214586483000157876 | K10: 500
A11: 3 | B11: 2021 | D11: 第七届移动互联创新大赛华南赛区 | E11: 团体 | F11: 一等奖 | G11: 省部级 | H11: 中国通信协会、全国移动互联创新大赛组委会 | I11: 段猛凯 | J11: 6214586482600227584 | K11: 5000 | L11: ￥10,000.00 | M11: 陈君涛 | P11: 2500 | Q11: 10000 | R11: =SUM(N11,P11) -> 2500
M12: 陈焕镜 | P12: 2500 | R12: =SUM(N12,P12) -> 2500
I13: 田泽裕 | J13: 6214586483000012121 | K13: 5000 | M13: 李转风 | P13: 2500 | R13: =SUM(N13,P13) -> 2500
M14: 王小梅 | P14: 2500 | R14: =SUM(N14,P14) -> 2500
A15: 4 | B15: 2021 | D15: 2021第七届移动互联网创新大赛高校组(华南赛区) | E15: 团体 | F15: 一等奖 | G15: 省级B类 | H15: 移动互联网创新大赛组委会 | I15: 赵鉴鹏 | J15: 6214586482600259181 | K15: 1600 | L15: ￥4,000.00 | M15: 吉家文 | P15: 3400 | Q15: ￥10,000 | R15: 3400
I16: 魏荣江 | J16: 6214586483000242744 | K16: 400 | M16: 李丛伟 | P16: 3300 | R16: 3300
I17: 张冲 | J17: 6214586482600255130 | K17: 400 | M17: 崔昌华 | P17: 3300 | R17: 3300
I18: 孙昕媛 | J18: 6214586482600255080 | K18: 400
I19: 潘圣毅 | J19: 6214586483000150608 | K19: 400
I20: 梁彩云 | J20: 6214586483000165267 | K20: 400
I21: 邓云龙 | J21: 6214586483000236035 | K21: 400
I22: 学生合计 | L22: =SUM(L4:L21) -> ￥26,500.00 | M22: 教师合计 | R22: =SUM(Q4:Q21) -> ￥58,000.00
A23: 总计 | E23: =SUM(L22,R22) -> ￥84,500.00

Sheet 三创赛
A1: 创新创业大赛学生获奖奖励和指导教师工作业绩奖励统计表
A2: 二级学院(公章): 制表日期： 年 月 日
A3: 序号 | B3: 获得证书年月 | C3: 项目名称 | D3: 竞赛名称 | E3: 组别 | F3: 奖项 | G3: 级别 | H3: 颁奖单位 | I3: 参赛选手 | J3: 农商银行卡号 | K3: 金额 | L3: 小计 | M3: 指导教师 | N3: 工作业绩计分 | O3: 小计 | P3: 获奖奖励分 | Q3: 小计 | R3: 教师总计
A4: 1 | B4: 2021 | C4: 果农帮 | D4: 第十一届全国大学生电子商务“创新、创意及创业”挑战赛海南赛区省级选拔赛 | E4: 团体 | F4: 一等奖 | G4: 省级A类 | H4: 海南省教育厅 | I4: 黄文宇 | J4: 6214586483000239468 | K4: 800 | L4: ￥4,000.00 | M4: 李丛伟 | P4: 5000 | Q4: 10000 | R4: =SUM(N4,P4) -> 5000
I5: 陈盛煌 | J5: 6228480158238196774 | K5: 800
I6: 郭慧嫔 | J6: 6214586483000239575 | K6: 800 | M6: 范高志 | P6: 5000 | R6: 5000
I7: 侯兆泉 | J7: 6214586483000262874 | K7: 800
I8: 赵鉴鹏 | J8: 6214586482600259181 | K8: 800
A9: 2 | B9: 2021 | C9: 五A级书屋 | D9: 第十一届全国大学生电子商务“创新、创意及创业”挑战赛海南赛区省级选拔赛 | E9: 团体 | F9: 二等奖 | G9: 省级A类 | H9: 海南省教育厅 | I9: 吴荣庆 | J9: 6214586483000179664 | K9: 500 | L9: ￥2,500.00 | M9: 李小玲 | P9: 4000 | Q9: 8000 | R9: 4000
I10: 谢元元 | J10: 6214586483000243965 | K10: 500
I11: 黄兰媚 | J11: 6214586483000250903 | K11: 500 | M11: 陈怡然 | P11: 4000 | R11: =SUM(N11,P11) -> 4000
I12: 孟真 | J12: 6214586483000254368 | K12: 500
I13: 林梦 | J13: 6214586483000281668 | K13: 500
A14: 3 | B14: 2021 | C14: 智慧蜻蜓 | D14: 第十一届全国大学生电子商务“创新、创意及创业”挑战赛海南赛区省级选拔赛 | E14: 团体 | F14: 二等奖 | G14: 省级A类 | H14: 海南省教育厅 | I14: 曾祥康 | J14: 6214586483000143553 | K14: 500 | L14: ￥2,500.00 | M14: 李小玲 | P14: 4000 | Q14: 8000 | R14: =SUM(N14,P14) -> 4000
I15: 龙应荣 | J15: 6214586483000152216 | K15: 500
I16: 蔡佳敏 | J16: 6214586482600252426 | K16: 500 | M16: 陈怡然 | P16: 4000 | R16: 4000
I17: 王江玲 | J17: 6214586482600254240 | K17: 500
I18: 胡超 | J18: 6214586482600258308 | K18: 500
A19: 4 | B19: 2021 | C19: 寻名记 | D19: 第十一届全国大学生电子商务“创新、创意及创业”挑战赛校赛 | E19: 团队 | F19: 二等奖 | G19: 省级A类 | H19: 海南省教育厅 | I19: 李少石 | J19: 6214586483000180266 | K19: 500 | L19: ￥2,500.00 | M19: 李丛伟 | P19: 4000 | Q19: 8000 | R19: 4000
I20: 郭心雨 | J20: 6214586483000180241 | K20: 500
I21: 冯林林 | J21: 6214586483000251372 | K21: 500 | M21: 吴多俊 | P21: 4000 | R21: =SUM(N21,P21) -> 4000
I22: 闵沁园 | J22: 6214586483000245572 | K22: 500
I23: 李得瑞 | J23: 6214586483000261892 | K23: 500
I24: 学生合计： | L24: =SUM(L4:L23) -> ￥11,500.00 | M24: 指导老师合计： | R24: =SUM(O4:O23,Q4:Q23) -> ￥34,000.00
A25: 总计： | E25: =SUM(L24,R24) -> ￥45,500.00

Sheet 团委挑战杯
A1: 创新创业大赛学生获奖奖励和指导教师工作业绩奖励统计表
A2: 二级学院(公章): 团委 制表日期：2021年11月13日
A3: 序号 | B3: 年份 | C3: 竞赛赛项 | D3: 竞赛名称 | E3: 组别 | F3: 奖项 | G3: 级别 | H3: 颁奖单位 | I3: 参赛选手 | J3: 农商银行卡号 | K3: 金额 | L3: 小计 | M3: 指导教师 | N3: 工作业绩计分 | O3: 小计 | P3: 获奖奖励分 | Q3: 小计 | R3: 教师总计
A4: 1 | B4: 2021 | C4: 科技类竞赛 | D4: 海南省第十届“挑战杯”海南省大学生课外学术科技作品竞赛 | E4: 红色专项 | F4: 一等奖 | G4: 省级 | H4: 共青团海南省委、海南省教育厅、省科技协会、省学联 | I4: 石大婷 | J4: 6214586482600257565 | K4: 1000 | L4: ￥4,000.00 | M4: 史付田 | P4: 4000 | Q4: ￥10,000.00 | R4: =SUM(N4,P4) -> ￥4,000.00
I5: 宋海霞 | J5: 6214586482600256773 | K5: 1000 | M5: 孔凯 | P5: 3000 | R5: =SUM(N5,P5) -> ￥3,000.00
I6: 梁珮雯 | J6: 6214586482600259439 | K6: 1000 | M6: 李婉 | P6: 3000 | R6: =SUM(N6,P6) -> ￥3,000.00
I7: 范宇坤 | J7: 6214586482600250040 | K7: 1000
A8: 2 | B8: 2021 | C8: 科技类竞赛 | D8: 海南省第十届“挑战杯”海南省大学生课外学术科技作品竞赛 | E8: 哲学社会科学类 | F8: 三等奖 | G8: 省级 | H8: 共青团海南省委、海南省教育厅、省科技协会、省学联 | I8: 赖国琪 | J8: 6214586483000260399 | K8: 600 | L8: ￥1,500.00 | M8: 蔡家瑶 | P8: 3000 | Q8: ￥5,000.00 | R8: =SUM(N8,P8) -> ￥3,000.00
I9: 郑卫洁 | J9: 6214586483000259813 | K9: 200 | M9: 陈青云 | P9: 1000 | R9: =SUM(N9,P9) -> ￥1,000.00
I10: 胡洪丽 | J10: 6214586483000263815 | K10: 250 | M10: 谢有发 | P10: 1000 | R10: =SUM(N10,P10) -> ￥1,000.00
I11: 黎天宇 | J11: 6214586483000262791 | K11: 200
I12: 钟润 | J12: 6214586483000262379 | K12: 250
A13: 3 | B13: 2021 | C13: 科技类竞赛 | D13: 海南省第十届“挑战杯”海南省大学生课外学术科技作品竞赛 | E13: 哲学社会科学类 | F13: 三等奖 | G13: 省级 | H13: 共青团海南省委、海南省教育厅、省科技协会、省学联 | I13: 李玮 | J13: 6214586483000078585 | K13: 1500 | L13: ￥1,500.00 | M13: 王师庆 | P13: 2500 | Q13: ￥5,000.00 | R13: =SUM(N13,P13) -> ￥2,500.00
I14: 邓斯宇 | M14: 马宁 | P14: 2500 | R14: =SUM(N14,P14) -> ￥2,500.00
I15: 艾凌竹
A16: 4 | B16: 2021 | C16: 科技类竞赛 | D16: 海南省第十届“挑战杯”海南省大学生课外学术科技作品竞赛 | E16: 红色专项 | F16: 三等奖 | G16: 省级 | H16: 共青团海南省委、海南省教育厅、省科技协会、省学联 | I16: 萧淇元 | J16: 6214586483000239245 | K16: 200 | L16: ￥1,500.00 | M16: 李婉 | P16: 3000 | Q16: ￥5,000.00 | R16: =SUM(N16,P16) -> ￥3,000.00
I17: 高源 | J17: 6214586483000262817 | K17: 200 | M17: 史付田 | P17: 1000 | R17: =SUM(N17,P17) -> ￥1,000.00
I18: 王国辉 | J18: 6214586483000262817 | K18: 200 | M18: 符艺诗 | P18: 1000 | R18: =SUM(N18,P18) -> ￥1,000.00
I19: 邱光颖 | J19: 6214586483000262817 | K19: 200
I20: 汤石源 | J20: 6214586483000268160 | K20: 200
I21: 罗茹婷 | J21: 6214586482600258522 | K21: 300
I22: 高铭泽 | J22: 6214586483000162850 | K22: 200
A23: 5 | B23: 2021 | C23: 科技类竞赛 | D23: 海南省第十届“挑战杯”海南省大学生课外学术科技作品竞赛 | E23: 哲学社会科学类 | F23: 三等奖 | G23: 省级 | H23: 共青团海南省委、海南省教育厅、省科技协会、省学联 | I23: 林荣基 | J23: 6214586483000137373 | K23: 300 | L23: ￥1,500.00 | M23: 张强 | P23: 5000 | Q23: ￥5,000.00 | R23: =SUM(N23,P23) -> ￥5,000.00
I24: 吴丹 | J24: 6214586482600257508 | K24: 300
I25: 赵明彪 | J25: 6214586482600257573 | K25: 300
I26: 逄欢 | J26: 6214586482600255163 | K26: 300
I27: 程焕杰 | J27: 6214586483000094319 | K27: 300
A28: 6 | B28: 2021 | C28: 科技类竞赛 | D28: 海南省第十届“挑战杯”海南省大学生课外学术科技作品竞赛 | E28: 哲学社会科学类 | F28: 三等奖 | G28: 省级 | H28: 共青团海南省委、海南省教育厅、省科技协会、省学联 | I28: 林荣基 | J28: 6214586483000137373 | K28: 300 | L28: ￥1,500.00 | M28: 张强 | P28: 5000 | Q28: ￥5,000.00 | R28: =SUM(R23:R27) -> ￥5,000.00
I29: 陈海斌 | J29: 6214586482600250669 | K29: 300
I30: 赵明彪 | J30: 6214586482600257573 | K30: 300
I31: 逄欢 | J31: 6214586482600255163 | K31: 300
I32: 程焕杰 | J32: 6214586483000094319 | K32: 300
I33: 学生合计： | L33: =SUM(L4:L32) -> ￥11,500.00 | M33: 指导老师合计： | R33: =SUM(O4:O32,Q4:Q32) -> ￥35,000.00
A34: 总计 | E34: =SUM(L4:L32,Q4:Q32) -> ￥46,500.00

Sheet ICan
A1: 各类学生竞赛获奖奖励和指导教师工作业绩奖励统计表
A2: 二级学院(公章): 团委 制表日期：2021年11月13日
A3: 序号 | B3: 年份 | C3: 竞赛赛项 | D3: 竞赛名称 | E3: 组别 | F3: 奖项 | G3: 级别 | H3: 颁奖单位 | I3: 参赛选手 | J3: 农商银行卡号 | K3: 金额 | L3: 小计 | M3: 指导教师 | N3: 工作业绩计分 | O3: 小计 | P3: 获奖奖励分 | Q3: 小计 | R3: 教师总计
A4: 1 | B4: 2021 | C4: 创新创业 | D4: 第十五届iCAN全国大学生创新创业大赛华南赛区总决赛 | E4: 专、本混合 | F4: 二等奖 | G4: 省部 A级 | H4: iCAN全国大学生创新创业大赛组委会 | I4: 段猛凯 | J4: 6214586482600227584 | K4: 4000 | L4: ￥6,000 | M4: 陈君涛 | P4: 5000 | Q4: ￥8,000 | R4: =SUM(N4,P4) -> 5000
I5: 田泽裕 | J5: 6214586483000012121 | K5: 2000 | M5: 陈焕镜 | P5: 3000 | R5: 3000
A6: 2 | B6: 202108 | C6: 创新创业大赛 | D6: 2021年iCAN大赛华南赛区 | E6: 团体 | F6: 三等奖 | G6: 省级 A级 | H6: 海南省教育厅 | I6: 秦鹏 | J6: 6214586483000261843 | K6: 750 | L6: ￥1,500 | M6: 刘麦 | P6: 4500 | Q6: ￥5,000 | R6: 4500
I7: 李忠桦 | J7: 6214586483000251703 | K7: 750 | M7: 李转风 | P7: 500 | R7: 500
A8: 3 | B8: 202108 | C8: 创新创业大赛 | D8: 2021年iCAN大赛华南赛区 | E8: 团体 | F8: 三等奖 | G8: 省级 A级 | H8: 海南省教育厅 | I8: 李可有 | J8: 6214586483000259052 | K8: 750 | L8: ￥1,500 | M8: 刘麦 | P8: 4500 | Q8: ￥5,000 | R8: 4500
I9: 吴荣瑾 | J9: 6214586483000238031 | K9: 750 | M9: 马艳花 | P9: 500 | R9: 500
I10: 参赛选手合计： | K10: =SUM(L4:L9) -> ￥9,000.00 | M10: 指导老师: | P10: =SUM(O4:O9,Q4:Q9) -> ￥18,000.00
A11: 总计： | F11: =SUM(K10,P10) -> ￥27,000.00

Sheet 自贸港
A1: 各类学生竞赛获奖奖励和指导教师工作业绩奖励统计表
A2: 二级学院(公章): 制表日期： 年 月 日
A3: 序号 | B3: 获得证书年月 | C3: 竞赛赛项 | D3: 竞赛名称 | E3: 项目名称 | F3: 组别 | G3: 奖项 | H3: 级别 | I3: 颁奖单位 | J3: 参赛选手 | K3: 农商银行卡号 | L3: 金额 | M3: 小计 | N3: 指导教师 | O3: 工作业绩计分 | P3: 小计 | Q3: 获奖奖励分 | R3: 小计 | S3: 教师总计
A4: 1 | B4: 202007 | C4: 创业大赛 | D4: 校第十届创业大赛 | E4: 《华腾人力一站式服务平台》 | G4: 一等奖 | H4: 校级 | I4: 海南经贸职业技术学院 | J4: 张超 | K4: 6214586483000084336 | L4: 250 | M4: ￥500.00 | N4: 李丹 | Q4: 250 | R4: ￥500.00 | S4: =SUM(O4,Q4) -> ￥250
J5: 文涵 | K5: 6214586483000179805 | L5: 250 | N5: 潘敏 | Q5: 250 | S5: =SUM(O5,Q5) -> ￥250
A6: 2 | B6: 202106 | C6: 自贸港创业大赛 | D6: 校第十一届创业大赛 | E6: 果农帮 | G6: 一等奖 | H6: 校级 | I6: 海南经贸职业技术学院 | J6: 黄文宇 | K6: 6214586483000239468 | L6: 125 | M6: ￥500.00 | N6: 潘敏 | Q6: 500 | R6: ￥500.00 | S6: =SUM(P6,R6) -> ￥500
J7: 郭慧嫔 | K7: 6214586483000239575 | L7: 125
J8: 赵鉴鹏 | K8: 6214586482600259181 | L8: 125
J9: 陈盛煌 | K9: 6228480158238196774 | L9: 125
A10: 3 | B10: 202007 | C10: 创业大赛 | D10: 校第十届创业大赛 | E10: 《自贸港旅游文创设计室》 | G10: 二等奖 | H10: 校级 | I10: 海南经贸职业技术学院 | J10: 龙月乾 | K10: 6214586483000084963 | L10: 60 | M10: ￥300.00 | N10: 许邵艺 | Q10: 150 | R10: ￥300.00 | S10: =SUM(O10,Q10) -> ￥150
J11: 张建忠 | K11: 6214586483000176595 | L11: 60
J12: 刘海平 | K12: 6214586483000087982 | L12: 60 | N12: 李丹 | Q12: 150 | S12: =SUM(O12,Q12) -> ￥150
J13: 包广兵 | K13: 6214586483000064668 | L13: 60
J14: 陈明潭 | K14: 6212262201027903113 农商行海口琼州大桥支行 | L14: 60
A15: 4 | B15: 202007 | C15: 创业大赛 | D15: 校第十届创业大赛 | E15: 《语港智服》 | G15: 二等奖 | H15: 校级 | I15: 海南经贸职业技术学院 | J15: 张建忠 | K15: 6214586483000176595 | L15: 50 | M15: ￥300.00 | N15: 李丹 | Q15: 150 | R15: ￥300.00 | S15: =SUM(O15,Q15) -> ￥150
J16: 龙月乾 | K16: 6214586483000084963 | L16: 50
J17: 黄小娟 | K17: 6214586482600256401 | L17: 50
J18: 刘海平 | K18: 6214586483000087982 | L18: 50 | N18: 陈秋菊 | Q18: 150 | S18: =SUM(O18,Q18) -> ￥150
J19: 包广兵 | K19: 6214586483000064668 | L19: 50
J20: 陈明潭 | K20: 6212262201027903113 农商行海口琼州大桥支行 | L20: 50
A21: 5 | B21: 2021 | C21: 自贸港创业大赛 | D21: 校第十一届创业大赛 | E21: 花间民宿 | F21: 创意组 | G21: 二等奖 | H21: 校级 | I21: 海南经贸职业技术学院 | J21: 吴琳娜 | K21: 6217852000022514262 | L21: 300 | M21: ￥300.00 | N21: 黄银亮 | Q21: 300 | R21: ￥300.00 | S21: =SUM(P21,R21) -> ￥300
A22: 9 | B22: 2021年 | C22: 自贸港创业大赛 | D22: 校第十一届创业大赛 | E22: 琼海之南 | F22: 创意组 | G22: 二等奖 | H22: 校级 | I22: 海南经贸职业技术学院 | J22: 罗翠萍 | K22: 6214586483000245226 | L22: 300 | M22: ￥300.00 | N22: 崔昌华 | Q22: 100 | R22: ￥300.00 | S22: =SUM(O22,Q22) -> ￥100
N23: 于勇 | Q23: 100 | S23: =SUM(O23,Q23) -> ￥100
N24: 黄银亮 | Q24: 100 | S24: =SUM(O24,Q24) -> ￥100
A25: 10 | B25: 2021年 | C25: 自贸港创业大赛 | D25: 校第十一届创业大赛 | E25: MENG香薰 | F25: 创意组 | G25: 二等奖 | H25: 校级 | I25: 海南经贸职业技术学院 | J25: 魏跃娇 | K25: 6214586483000262213 | L25: 100 | M25: ￥300.00 | N25: 黄银亮 | Q25: 300 | R25: ￥300.00 | S25: =SUM(P25,R25) -> ￥300
J26: 杨娟娟 | K26: 6214586483000244344 | L26: 100
J27: 庞龙芳 | K27: 6214586483000276569 | L27: 100
A28: 6 | B28: 2021年 | C28: 自贸港创业大赛 | D28: 校第十一届创业大赛 | E28: 防护雨伞 | F28: 创意组 | G28: 三等奖 | H28: 校级 | I28: 海南经贸职业技术学院 | J28: 钟宇星 | K28: 6214586483000244518 | L28: 200 | M28: ￥200.00 | N28: 黄银亮 | Q28: 200 | R28: ￥200.00 | S28: =SUM(P28,R28) -> ￥200
A29: 7 | B29: 2021年 | C29: 自贸港创业大赛 | D29: 校第十一届创业大赛 | E29: 海源AI | F29: 创意组 | G29: 三等奖 | H29: 校级 | I29: 海南经贸职业技术学院 | J29: 胡萌 | K29: 6214586483000246695 | L29: 50 | M29: ￥200.00 | N29: 黄银亮 | Q29: 200 | R29: ￥200.00 | S29: ￥200
J30: 钟羽 | K30: 6214586483000259730 | L30: 100
J31: 成锦桃 | K31: 6214586483000268194 | L31: 50
A32: 8 | B32: 2021年 | C32: 创业大赛 | D32: 校第十届创业大赛 | E32: 花寄 | G32: 三等奖 | H32: 校级 | I32: 海南经贸职业技术学院 | J32: 罗星思 | K32: 6214586483000260704 | L32: 80 | M32: ￥200.00 | N32: 徐超 | Q32: 200 | R32: ￥200.00 | S32: ￥200
J33: 曾娇 | K33: 6214586483000264763 | L33: 60
J34: 赵子文 | K34: 6214586483000237033 | L34: 60
A35: 11 | B35: 2021年 | C35: 自贸港创新创业大赛 | D35: 校第十一届创业大赛 | E35: 快订奶 | G35: 三等奖 | H35: 校级 | I35: 海南经贸职业技术学院 | J35: 唐振荷 | K35: 6214586483000262205 | L35: 40 | M35: ￥200.00 | N35: 鄢平牡 | Q35: 200 | R35: ￥200.00 | S35: =SUM(P35,R35) -> ￥200
J36: 许光青 | K36: 6214586483000261629 | L36: 40
J37: 苏春月 | K37: 6214586483000249772 | L37: 40
J38: 陈欢 | K38: 6214586483000238601 | L38: 40
J39: 林耀齐 | K39: 6214586483000066770 | L39: 40
A40: 12 | B40: 2021 | C40: 创新创业 | D40: 校第十一届创业大赛 | E40: 乐创设计约绘 | F40: 团体 | G40: 三等奖 | H40: 校级 | I40: 海南经贸职业技术学院 | J40: 陈丽桦 | K40: 6214586483000270299 | L40: 40 | M40: ￥200.00 | N40: 陈霞 | Q40: 130 | R40: ￥200.00 | S40: =SUM(O40,Q40) -> ￥130
J41: 王琼艳 | K41: 6214586483000246521 | L41: 40 | N41: 李转风 | Q41: 70 | S41: =SUM(O41,Q41) -> ￥70
J42: 赵源雅 | K42: 6214586483000270505 | L42: 40
J43: 陈冠辰 | K43: 6214586483000242173 | L43: 40
J44: 许琪琨 | K44: 6214586482600258043 | L44: 40
A45: 13 | B45: 2021年 | C45: 自贸港创业大赛 | D45: 校第十一届创业大赛 | E45: 买卖呗 | F45: 创意组 | G45: 三等奖 | H45: 校级 | I45: 海南经贸职业技术学院 | J45: 梁霖 | K45: 6214586483000239872 | L45: 50 | M45: ￥200.00 | N45: 郑艳 | Q45: 200 | R45: ￥200.00 | S45: =SUM(P45,R45) -> ￥200
J46: 董继颖 | K46: 6214586483000247719 | L46: 50
J47: 曾春香 | K47: 6214586483000260720 | L47: 50
J48: 李燕妮 | K48: 6214586483000259748 | L48: 50
A49: 14 | B49: 2021年 | C49: 自贸港创业大赛 | D49: 校第十一届创业大赛 | E49: 书香阁 | F49: 创意组 | G49: 三等奖 | H49: 校级 | I49: 海南经贸职业技术学院 | J49: 周玲玲 | K49: 6214586483000253949 | L49: 50 | M49: ￥200.00 | N49: 黄银亮 | Q49: 200 | R49: ￥200.00 | S49: =SUM(P49,R49) -> ￥200
J50: 张嘉瑜 | K50: 6214586483000258740 | L50: 50
J51: 杨慧 | K51: 6214586483000273996 | L51: 50
J52: 吴静静 | K52: 6214586483000241985 | L52: 50
J53: 学生总计： | L53: =SUM(M4:M52) -> ￥3,900.00 | N53: 指导老师总计： | R53: =SUM(P4:P52,R4:R52) -> ￥3,900.00
A54: 总计： | F54: =SUM(L53,R53) -> 7800
